Cogmind - Beta 13 *** ADVENTURER MODE // 2024.05.07 @ 20:22:17 // Winter2019/RPGLIKE Player: XorOwl Result: Destroyed by L-31 Rogue with Katana Performance ------------- Evolutions (2) 1000 Regions Visited (6) 1200 Robots Destroyed (61) 305 Value Destroyed (1478) 1478 Prototype IDs (3) 60 Alien Tech Used (0) 0 Bonus (584) 584 TOTAL SCORE: 4627 Bonus ------- High Alert Combat Kills 84 Entered Garrisons 200 Aligned with FarCom 300 Cogmind --------- Core Integrity 0/700 Matter 342/350 Energy 250/250 System Corruption 0% Temperature Cool (0) Movement Rolling (100) Location -8/Garrison Parts ------- > --- POWER (1) -------- Ion Engine > --- PROPULSION (3) --- Compact Wheel Compact Wheel Compact Wheel > --- UTILITY (5) ------ Improved Heat Sink Signal Interpreter Seismic Detector Core Analyzer Core Analyzer > --- WEAPON (3) ------- Heavy Laser Light Cannon Rocket Launcher > --- INVENTORY (2) ---- Improved Terrain Scanner Grenade Launcher Peak State ------------ > --- POWER ------------ Ion Engine > --- PROPULSION ------- Compact Wheel Compact Wheel Compact Wheel > --- UTILITY ---------- Improved Heat Sink Signal Interpreter Seismic Detector Core Analyzer Core Analyzer > --- WEAPON ----------- Heavy Laser Light Cannon Rocket Launcher > --- INVENTORY -------- Improved Terrain Scanner Grenade Launcher [Rating: 24] Favorites ----------- Power Ion Engine Engine Ion Engine Propulsion Compact Wheel Treads Light Treads Wheel Compact Wheel Utility Seismic Detector Device Seismic Detector Processor Signal Interpreter Weapon Medium Laser Energy Gun Medium Laser Ballistic Cannon Light Cannon Launcher Grenade Launcher Special Weapon Mining Laser Build | -11 -10 -10 -10 -9 -8 -8 ------- Run | Yrd Mat Min Exi Min Mat Gar Slots Evolved 8 | 5 . 1 . . 2 . Power . | . . . . . . . Propulsion 2 | 2 . . . . . . Utility 4 | 2 . 1 . . 1 . Weapon 2 | 1 . . . . 1 . Parts Attached 29 | 8 11 1 . 1 3 5 Power 1 | 1 . . . . . . Engine 1 | 1 . . . . . . Core . | . . . . . . . Reactor . | . . . . . . . Propulsion 6 | 2 4 . . . . . Treads 3 | 2 1 . . . . . Leg . | . . . . . . . Wheel 3 | . 3 . . . . . Hover . | . . . . . . . Flight . | . . . . . . . Utility 9 | 3 2 . . . 1 3 Device 6 | 3 1 . . . 1 1 Storage . | . . . . . . . Processor 3 | . 1 . . . . 2 Hackware . | . . . . . . . Protection . | . . . . . . . Artifact . | . . . . . . . Weapon 13 | 2 5 1 . 1 2 2 Energy Gun 2 | 1 . . . . . 1 Energy Cannon . | . . . . . . . Ballistic Gun . | . . . . . . . Ballistic Cannon 4 | . 3 . . . 1 . Launcher 6 | . 2 1 . 1 1 1 Special Weapon 1 | 1 . . . . . . Impact Weapon . | . . . . . . . Slashing Weapon . | . . . . . . . Piercing Weapon . | . . . . . . . Special Melee Weapon . | . . . . . . . Unidentified Prototypes 1 | . . . 1 . . . Parts Lost . | . . . . . . . Power . | . . . . . . . Propulsion . | . . . . . . . Utility . | . . . . . . . Weapon . | . . . . . . . Highest Loss Streak . | . . . . . . . To Critical Strikes . | . . . . . . . Average Slot Usage (%) 92 | . 96 90 90 90 80 93 Engine 10 | . 11 10 10 10 8 8 Treads 4 | . 12 . . . . . Wheel 24 | . 17 30 30 30 25 25 Device 21 | . 25 20 20 20 16 22 Processor 9 | . 8 10 10 10 8 12 Energy Gun 10 | . 11 10 10 10 8 8 Ballistic Cannon 5 | . 10 8 . . 5 8 Launcher 5 | . . 2 10 10 6 8 Naked Turns . | . . . . . . . Heaviest Build 19 | 11 13 12 12 13 17 19 Greatest Support 60 | 40 60 48 48 48 48 48 Greatest Overweight (x) 3 | . 3 . . . . . Average Overweight (x) . | . . . . . . . Largest Inventory Capacity 2 | 2 2 2 2 2 2 2 Average Capacity 2 | 2 2 2 2 2 2 2 Most Carried 2 | 2 2 2 2 2 2 2 Average Carried 1 | . . 2 2 2 1 1 Final Capacity 2 | 2 2 2 2 2 2 2 Final Carried 2 | . 2 2 2 2 1 2 Class Distribution -------------------- 55% | Mutant 17% | Skirmisher 13% | Hacker-Skirmisher 10% | Scavenger-Mutant 3% | Hacker-Gunner Dominant Class ---------------- Mutant | -10/Materials Mutant | -10/Mines Mutant | -10/Exiles Skirmisher | -9/Mines Hacker-Skirmisher | -8/Materials Hacker-Skirmisher | -8/Garrison Resources | -11 -10 -10 -10 -9 -8 -8 ----------- Run | Yrd Mat Min Exi Min Mat Gar Matter Collected 1321 | 280 426 . . 36 233 346 Remotely 78 | 56 22 . . . . . Salvage Created 1096 | 93 378 . . 12 317 296 Parts 114 | 9 49 . . 2 27 27 Haulers Intercepted 2 | . 2 . . . . . Recyclers Shooed 2 | 1 1 . . . . . Parts Field Recycled . | . . . . . . . Retrieved Matter . | . . . . . . . Parts Self-Destructed . | . . . . . . . Prevented . | . . . . . . . Kills | -11 -10 -10 -10 -9 -8 -8 ------- Run | Yrd Mat Min Exi Min Mat Gar Combat Hostiles Destroyed 45 | . 17 . . . 9 19 Guns 12 | . 5 . . . 1 6 Cannons 24 | . 12 . . . 7 5 AOE 9 | . . . . . 1 8 Classes Destroyed 11 | 2 6 . . . 3 . Worker 3 | . 2 . . . 1 . Builder 5 | . 3 . . 1 1 . Tunneler 1 | 1 . . . . . . Hauler 2 | . 2 . . . . . Recycler 1 | 1 . . . . . . Operator 1 | . . . . . 1 . Watcher 3 | . 3 . . . . . Swarmer 21 | . 9 . . . . 12 Grunt 19 | . 8 . . . 5 6 Duelist 1 | . . . . . 1 . Sentry 4 | . . . . . 3 1 Best Kill Streak 15 | 1 5 . . 1 12 15 Combat Bots Only 15 | . 5 . . . 9 15 Max Kills in Single Turn 4 | 1 2 . . 1 2 4 Gunslinging . | . . . . . . . Exploded 3 | . . . . . 1 3 Melee . | . . . . . . . Uniques/NPCs Destroyed . | . . . . . . . Combat | -11 -10 -10 -10 -9 -8 -8 -------- Run | Yrd Mat Min Exi Min Mat Gar Hostile Shots Fired 199 | . 55 . . . 86 58 Missed 62 | . 16 . . . 24 22 Damage Taken 1441 | . 290 . . 27 758 366 Core 1162 | . 224 . . 23 626 289 Absorbed by Shields . | . . . . . . . Redirected to Core 854 | . 189 . . 14 414 237 Ignored by Resistances 455 | . 94 . . 8 232 121 Core Remaining (%) 98 | 100 . . . 96 . . Volleys Fired 138 | 3 69 4 . 1 31 30 Largest 3 | 2 2 2 . 1 3 3 Hottest 150 | 150 85 80 . 30 118 118 Shots Fired 266 | 4 130 6 . 1 57 68 Gun 118 | 3 61 2 . . 22 30 Cannon 123 | . 62 . . . 31 30 Launcher 24 | . 7 4 . 1 4 8 Special 1 | 1 . . . . . . Kinetic 123 | . 62 . . . 31 30 Thermal 119 | 4 61 2 . . 22 30 Explosive 24 | . 7 4 . 1 4 8 Electromagnetic . | . . . . . . . Robot Hit Streak 28 | 2 18 . . 19 28 22 Robot Miss Streak 3 | 1 3 . . . 1 1 Penetration Max . | . . . . . . . Secondary Targets . | . . . . . . . Shots Hit Robots 167 | 3 66 . . 1 53 44 Core Hits 89 | 3 33 . . 1 25 27 Critical Kills . | . . . . . . . Critical Parts Destroyed . | . . . . . . . Critical Strikes 9 | . 6 . . . 3 . Burn 6 | . 5 . . . 1 . Blast 3 | . 1 . . . 2 . Melee Attacks . | . . . . . . . Impact . | . . . . . . . Slashing . | . . . . . . . Piercing . | . . . . . . . Sneak Attacks . | . . . . . . . Combat Hostiles . | . . . . . . . Follow-up Attacks . | . . . . . . . Damage Inflicted 3887 | 38 1021 . . 44 1198 1586 Guns 1057 | 38 467 . . . 261 291 Cannons 1399 | . 534 . . . 507 358 Explosions 1423 | . 12 . . 44 430 937 Melee . | . . . . . . . Ramming 8 | . 8 . . . . . Kinetic 1399 | . 534 . . . 507 358 Thermal 1057 | 38 467 . . . 261 291 Explosive 1423 | . 12 . . 44 430 937 Electromagnetic . | . . . . . . . Impact . | . . . . . . . Slashing . | . . . . . . . Piercing . | . . . . . . . Highest Corruption 1 | . 1 1 1 1 . . Average Corruption 1 | . 1 1 1 1 . . Corruption Purged . | . . . . . . . Corruption Blocked . | . . . . . . . Effects 21 | . 6 1 5 9 . . Message Errors 5 | . 1 . 1 3 . . Matter Fused 2 | . 1 . 1 . . . Heat Flow Errors 3 | . 1 1 . 1 . . Energy Discharges 6 | . . . 3 3 . . Data Loss (minor) 4 | . 2 . . 2 . . Data Loss (major) 1 | . 1 . . . . . Overload Shots . | . . . . . . . Overflow Damage 37 | . . . . . 24 13 Projectiles . | . . . . . . . Explosions 37 | . . . . . 24 13 Melee . | . . . . . . . Knockbacks 15 | . 5 . . . 7 3 Impact 1 | . 1 . . . . . Kinetic 13 | . 3 . . . 7 3 Secondary 1 | . 1 . . . . . Self-Inflicted Damage 38 | . 9 . . 29 . . Shots 2 | . 1 . . 1 . . Rammed 1 | . 1 . . . . . Targets Rammed 1 | . 1 . . . . . Kicked . | . . . . . . . Crushed . | . . . . . . . Highest Temperature 350 | 20 184 96 . 265 350 . Average Temperature 70 | 13 20 57 . 135 169 . Received Heat Transfer 741 | . 102 . . . 477 162 Effects 4 | . . . . . 4 . Shutdowns 1 | . . . . . 1 . Energy Bleed 2 | . . . . . 2 . Matter Decay 1 | . . . . . 1 . Siege Activations . | . . . . . . . Robots Corrupted . | . . . . . . . Combat Hostiles . | . . . . . . . Parts Fried . | . . . . . . . Impact Corruptions . | . . . . . . . Robots Melted . | . . . . . . . Combat Hostiles . | . . . . . . . Parts Melted 4 | . 2 . . . 1 1 Heat Transferred 3441 | 111 1739 . . . 851 740 Parts Sabotaged . | . . . . . . . Parts Stolen . | . . . . . . . Parts Stripped . | . . . . . . . Power Chain Reactions . | . . . . . . . Alert | -11 -10 -10 -10 -9 -8 -8 ------- Run | Yrd Mat Min Exi Min Mat Gar Peak Influence 659 | 10 340 55 . 15 314 659 Initial 178 | . 5 43 . . . 178 Average 139 | 5 122 44 . 2 125 459 Maximum Alert Level 2 | . 1 . . . 1 2 Low Security (%) 73 | 100 72 100 . 100 68 27 Level 1 15 | . 27 . . . 31 4 Level 2 10 | . . . . . . 68 Level 3 . | . . . . . . . Level 4 . | . . . . . . . Level 5 . | . . . . . . . High Security . | . . . . . . . Max Security . | . . . . . . . Squads Dispatched 9 | . 3 . . . 6 . Investigation 4 | . 3 . . . 1 . Extermination . | . . . . . . . Reinforcement 1 | . . . . . 1 . Assault . | . . . . . . . Garrison 4 | . . . . . 4 . Intercept . | . . . . . . . Searches Triggered . | . . . . . . . Construction Impeded 1 | . . . . . 1 . Haulers Reinforced . | . . . . . . . Active Scanning Responses . | . . . . . . . Cargo Convoy Interrupts . | . . . . . . . Stealth | -11 -10 -10 -10 -9 -8 -8 --------- Run | Yrd Mat Min Exi Min Mat Gar Distress Signals 1 | . 1 . . . . . Communications Jammed . | . . . . . . . Distress Signals . | . . . . . . . Times Spotted 56 | . 21 . . . 17 18 Peak Tracking Total 8 | . 4 . . . 4 8 Tactical Retreats 1 | . 1 . . . . . Traps | -11 -10 -10 -10 -9 -8 -8 ------- Run | Yrd Mat Min Exi Min Mat Gar Traps Triggered 4 | . 2 . . . . 2 Indirectly . | . . . . . . . Trap Hack Attempts . | . . . . . . . Triggered . | . . . . . . . Disarmed . | . . . . . . . Reprogrammed . | . . . . . . . Reused . | . . . . . . . Traps Extracted . | . . . . . . . Installed . | . . . . . . . Triggered . | . . . . . . . Machines | -11 -10 -10 -10 -9 -8 -8 ---------- Run | Yrd Mat Min Exi Min Mat Gar Machines Disabled 14 | . 12 . . . 2 . Max in Single Turn 2 | . 2 . . . 1 . Machines Repaired . | . . . . . . . Machines Dismantled . | . . . . . . . Machines Sabotaged . | . . . . . . . Overloaded Fab Kills . | . . . . . . . Hacking | -11 -10 -10 -10 -9 -8 -8 --------- Run | Yrd Mat Min Exi Min Mat Gar Machines Accessed 9 | . 7 . . . 2 . Terminals 8 | . 7 . . . 1 . Fabricators . | . . . . . . . Repair Stations . | . . . . . . . Recycling Units . | . . . . . . . Scanalyzers . | . . . . . . . Garrison Access 1 | . . . . . 1 . Total Hacks 27 | . 20 . . . 7 . Successful 12 | . 9 . . . 3 . Failed 15 | . 11 . . . 4 . Catastrophic 2 | . 2 . . . . . Database Lockouts . | . . . . . . . Manual 24 | . 17 . 1 . 6 . Terminals 26 | . 20 . . . 6 . Fabricators . | . . . . . . . Repair Stations . | . . . . . . . Recycling Units . | . . . . . . . Scanalyzers . | . . . . . . . Garrison Access 1 | . . . . . 1 . Terminal Hacks 3 | . 3 . . . . . Prototype ID Bank 1 | . 1 . . . . . Unreport Threat 1 | . 1 . . . . . Maintenance Status 1 | . 1 . . . . . Fabricator Hacks . | . . . . . . . Repair Station Hacks . | . . . . . . . Recycling Unit Hacks . | . . . . . . . Scanalyzer . | . . . . . . . Garrison Access Hacks 1 | . . . . . 1 . Unlock Access 1 | . . . . . 1 . Unauthorized Hacks 8 | . 6 . . . 2 . Terminals 8 | . 6 . . . 2 . Assimilate 1 | . . . . . 1 . Botnet 7 | . 6 . . . 1 . Fabricators . | . . . . . . . Repair Stations . | . . . . . . . Recycling Units . | . . . . . . . Scanalyzers . | . . . . . . . Garrison Access . | . . . . . . . Data Cores Recovered . | . . . . . . . Used . | . . . . . . . Hacking Detections 8 | . 7 . . . 1 . Full Trace Events 5 | . 4 . . . 1 . Feedback Events . | . . . . . . . Feedback Blocked . | . . . . . . . Robot Schematics Acquired . | . . . . . . . Robots Built . | . . . . . . . Authchips . | . . . . . . . Time . | . . . . . . . Total Robot Build Rating . | . . . . . . . Part Schematics Acquired . | . . . . . . . Parts Built . | . . . . . . . Authchips . | . . . . . . . Time . | . . . . . . . Total Part Build Rating . | . . . . . . . Parts Repaired . | . . . . . . . Time . | . . . . . . . Parts Recycled . | . . . . . . . Recycled Matter . | . . . . . . . Retrieved Matter . | . . . . . . . Retrieved Components . | . . . . . . . Parts Scanalyzed . | . . . . . . . Part Schematics Acquired . | . . . . . . . Parts Damaged . | . . . . . . . Bothacking | -11 -10 -10 -10 -9 -8 -8 ------------ Run | Yrd Mat Min Exi Min Mat Gar Used RIF Installer . | . . . . . . . Robots Hacked . | . . . . . . . Non-combat . | . . . . . . . Combat . | . . . . . . . Robot Hacks Applied . | . . . . . . . Relay Couplers Released . | . . . . . . . Fabnet Peak Effective % . | . . . . . . . Robots Rewired . | . . . . . . . Allies Hacked . | . . . . . . . Hacks Repelled . | . . . . . . . Allies | -11 -10 -10 -10 -9 -8 -8 -------- Run | Yrd Mat Min Exi Min Mat Gar Total Allies . | . . . . . . . Largest Group . | . . . . . . . Highest-Rated Group . | . . . . . . . Highest-Rated Ally . | . . . . . . . Total Orders . | . . . . . . . Ally Attacks . | . . . . . . . Total Damage . | . . . . . . . Kills . | . . . . . . . Allies Corrupted . | . . . . . . . Allies Melted . | . . . . . . . Intel | -11 -10 -10 -10 -9 -8 -8 ------- Run | Yrd Mat Min Exi Min Mat Gar Robot Analysis Total . | . . . . . . . Derelict Logs Recovered 1 | . . . . 1 . . Drone Launches . | . . . . . . . Drone Recoveries . | . . . . . . . Exploration | -11 -10 -10 -10 -9 -8 -8 ------------- Run | Yrd Mat Min Exi Min Mat Gar Turns Passed 2952 | 83 987 151 752 484 150 345 Spaces Moved 1589 | 39 599 59 396 252 55 189 Core 25 | 2 23 . . . . . Treads 246 | 37 209 . . . . . Legs . | . . . . . . . Wheels 1318 | . 367 59 396 252 55 189 Hover . | . . . . . . . Flight . | . . . . . . . Fastest Speed 50 | 50 100 100 100 100 100 100 Average Speed 110 | 154 124 100 100 100 100 100 Slowest Speed 200 | 160 200 100 100 100 100 100 Overloaded Moves . | . . . . . . . Propulsion Burnouts . | . . . . . . . Robots Hopped . | . . . . . . . Cave-ins Triggered . | . . . . . . . Time Travels 1 | . . . 1 . . . Exploration Rate (%) 44 | 4 88 8 90 73 9 38 Regions Visited 6 Branch Regions 3 Pre-discovered Areas . | . . . . . . . Known Exits Taken 5 | . 1 1 1 1 1 . Unknown Exits Taken 1 | 1 . . . . . . Scrap Searched 1 | . . . . 1 . . Spaces Dug 37 | . 23 14 . . . . Terrain Destroyed 141 | . 60 28 . 10 22 21 Melee . | . . . . . . . Projectile . | . . . . . . . AOE 141 | . 60 28 . 10 22 21 Terrain Rammed . | . . . . . . . Walls Destroyed . | . . . . . . . Machines Disabled . | . . . . . . . Actions | -11 -10 -10 -10 -9 -8 -8 --------- Run | Yrd Mat Min Exi Min Mat Gar Total 2515 | 54 706 144 752 483 93 283 Wait 712 | . 1 81 357 229 . 44 Move 1584 | 38 598 58 395 251 55 189 Hop . | . . . . . . . Pick Up 8 | 5 3 . . . . . Fast Attach 15 | 3 6 . . 1 2 3 Attach 8 | 5 1 . . . 1 1 Detach 2 | . . . . . . 2 Swap 6 | . 4 1 . . . 1 Drop 9 | . 6 . . 1 . 2 Fire 138 | 3 69 4 . 1 31 30 Melee . | . . . . . . . Ram . | . . . . . . . Kick . | . . . . . . . Crush 1 | . 1 . . . . . Escape Stasis 4 | . . . . . . 4 Rewire . | . . . . . . . Trap . | . . . . . . . Miscellaneous 28 | . 17 . . . 4 7 Route ------- -11/Scrapyard -10/Materials (discovered 4 exits: *Mat x3 / *Min) -10/Mines -10/Exiles -9/Mines -8/Materials -8/Garrison (discovered 1 exit: [*Fac]) History --------- Turn | Location | Event 1 | -11/Scrapyard | Upgraded with Propulsion slot (x2) 1 | -11/Scrapyard | Upgraded with Utility slot (x2) 1 | -11/Scrapyard | Upgraded with Weapon slot (x1) 10 | -11/Scrapyard | Discovered new exit (range 16) 84 | -11/Scrapyard | Entered Materials 270 | -10/Materials | Discovered new exit (range 8) 357 | -10/Materials | Identified exit to Mines 463 | -10/Materials | Reached level 2 515 | -10/Materials | Discovered new exit (range 17) 651 | -10/Materials | Discovered new exit (range 3) 831 | -10/Materials | Build established: Mutant 868 | -10/Materials | Discovered new exit (range 15) 882 | -10/Materials | Identified exit to Materials 1071 | -10/Materials | Entered Mines 1073 | -10/Mines | Reached level 3 1075 | -10/Mines | Upgraded with Utility slot (x1) 1155 | -10/Mines | Discovered new exit (range 15) 1221 | -10/Mines | Identified exit to Exiles 1222 | -10/Mines | Entered Exiles 1346 | -10/Exiles | Met 8R-AWN 1364 | -10/Exiles | Met EX-HEX 1409 | -10/Exiles | Met EX-BIN 1421 | -10/Exiles | Aligned with FarCom system 1422 | -10/Exiles | Given EX-Vault access code 1448 | -10/Exiles | Opened EX-Vault 1454 | -10/Exiles | Found Prototype Device 1454 | -10/Exiles | Identified Chronowheel 1454 | -10/Exiles | Activated Chronowheel 1454 | -10/Exiles | Spacetime reconverged on an earlier point 1477 | -10/Exiles | Warned to stay clear of 0b10 Research branches 1502 | -10/Exiles | Met EX-DEC 1540 | -10/Exiles | Visited The Gauntlet 1961 | -10/Exiles | Discovered new exit (range 16) 1973 | -10/Exiles | Identified exit to Mines 1974 | -10/Exiles | Entered Mines 2228 | -9/Mines | Learned Materials trap positions 2260 | -9/Mines | Build established: Skirmisher 2324 | -9/Mines | Received a Rocket Launcher from a helpful Derelict 2407 | -9/Mines | Discovered new exit (range 14) 2457 | -9/Mines | Identified exit to Materials 2458 | -9/Mines | Entered Materials 2459 | -8/Materials | Loaded intel: 18 trap records 2460 | -8/Materials | Reached level 4 2460 | -8/Materials | Reached level 5 2460 | -8/Materials | Reached level 6 2465 | -8/Materials | Upgraded with Utility slot (x1) 2465 | -8/Materials | Upgraded with Weapon slot (x1) 2531 | -8/Materials | Reached level 7 2557 | -8/Materials | Core integrity fell below 50% 2600 | -8/Materials | Garrison activated, responded to threat 2608 | -8/Materials | Core integrity fell below 20% 2608 | -8/Materials | Identified exit to Garrison 2608 | -8/Materials | Entered Garrison 2610 | -8/Garrison | Reached level 8 2621 | -8/Garrison | Destroyed 9 combat bots 2703 | -8/Garrison | Triggered checkpoint 2706 | -8/Garrison | Triggered checkpoint 2746 | -8/Garrison | Reached level 9 2765 | -8/Garrison | Build established: Hacker-Skirmisher 2767 | -8/Garrison | Destroyed 15 combat bots 2900 | -8/Garrison | Discovered new exit (range 15) 2946 | -8/Garrison | Triggered checkpoint 2953 | -8/Garrison | Destroyed by L-31 Rogue with Katana Last Messages --------------- Acquired 10 matter. Acquired 5 matter. Acquired 7 matter. Acquired Core Analyzer. Y-45 Defender destroyed. EXIT=FOUND Acquired 42 matter. Triggered Stasis Trap. A bubble of rippling energy engulfs the area. Field strength at 70. Field strength at 40. Field strength at 10. Stasis field depleted. Triggered Stasis Trap. A bubble of rippling energy engulfs the area. Field strength at 70. Field strength at 40. Field strength at 10. Stasis field depleted. Beams of light sweep through the air. An alarm sounds. Map ----- +----------------------------------------------------+ | ?### ## [ [ #### #?????????????????????????? | | ???# ## ##?# #???????#######???????????? | | ^ ### #######?#!! //#???????????? | | ^^ #?# //#???????????? | | #### ######## ### #???????????? | | ???## ## # *[ #?????# + #???????????? | | ????# ## ##[%% ##?????# ### #???????????? | | ????# ######## [ #??????# #?#!! !!#???????????? | | ????# #?????# ###??????# #?#!! !!#???????????? | | ????# #?????# #???????# #?#######???????????? | | ????# #?????## ##???##### #????Y??????????????? | | ????# #??????# ???? # #???????????????????? | | ???? #??????# ##???# ### #???????????????????? | | ???? #??????# #????# #?# #???????????????????? | | ????####??????# #????# #?# #??????????????????? | | ??????????????# ###### ###"#################### | | ??????????????# | | ??????????????# !!* | | ??????????????# [%% | | ??????????????########## ###############[######### | | ???????????????????????# #?????????????###???????? | | ???????????????????????# #???????????????????????? | | ???????????????????????# #??l????????????????????? | | ???????????????????????# #???%#??????????????????? | | ???????????????????????# ## #####??????????????? | | ???????????????????????#%@l #????????????? | | ???????????????????????##########" #????????????? | | ?????????????????????????????????????????????????? | | ?????????????????????????????????????????????????? | | ?????????????????????????????????????????????????? | | ?????????????????????????????????????????????????? | | ?????????????????????????????????????????????????? | | ?????????????????????????????????????????????????? | | ?????????????????????????????????????????????????? | | ?????????????????????????????????????????????????? | | ?????????????????????????????????????????????????? | | ?????????????????????????????????????????????????? | | ?????????????????????????????????????????????????? | | ?????????????????????????????????????????????????? | | ?????????????????????????????????????????????????? | | ?????????????????????????????????????????????????? | | ?????????????????????????????????????????????????? | | ?????????????????????????????????????????????????? | | ?????????????????????????????????????????????????? | | ?????????????????????????????????????????????????? | | ?????????????????????????????????????????????????? | | ?????????????????????????????????????????????????? | | ?????????????????????????????????????????????????? | | | | | +----------------------------------------------------+ Best States ------------- Heat Dissipation 69 Energy Generation 15 Energy Capacity 250 Matter Stores 350 Matter Capacity 350 Sight Range 17 Robot Scan Range 12 Terrain Scan Range 16 Terrain Scan Density 110 Resistance: KI 25 Resistance: TH 20 Resistance: EX 20 Resistance: EM 20 Resistance: I 20 Resistance: S 20 Resistance: P 20 Evasion (%) 40 Core Analysis 9 Recoil Reduction 3 Offensive Hacking 15 Defensive Hacking 10 Item Schematics ----------------- None Robot Schematics ------------------ None Fabricated ------------ Nothing Alien Tech Used ----------------- None Achievements -------------- None Challenges ------------ None RPGLIKE | -11 -10 -10 -10 -9 -8 -8 --------- Run | Yrd Mat Min Exi Min Mat Gar Levels Raised 8 | . 1 1 . . 4 2 XP Earned 16602 | 4000 2765 500 350 649 5699 2639 XP Spent 14435 | 4000 1500 1485 . . 4450 3000 Upgrades 41 | 9 6 6 . . 11 9 Propulsion Slot 2 | 2 . . . . . . Utility Slot 4 | 2 . 1 . . 1 . Weapon Slot 2 | 1 . . . . 1 . Core Integrity 2 | . . 2 . . . . Heat Dissipation 5 | 1 . . . . . 4 Energy Generation 1 | . . . . . . 1 Matter Storage 1 | . . . . . 1 . Inventory Capacity 2 | 2 . . . . . . Sight Range 1 | 1 . . . . . . Sensor Range 6 | . . 2 . . 4 . Terrain Scan Density 1 | . 1 . . . . . Ranged Accuracy 4 | . 2 . . . 1 1 Hack Attack % 1 | . . . . . 1 . Hack Defense % 2 | . . . . . 2 . KI Resistance % 1 | . 1 . . . . . KI Damage % 2 | . 1 . . . . 1 TH Damage % 2 | . 1 . . . . 1 EX Damage % 2 | . . 1 . . . 1 Protomatter Created 388 | . 213 . . . 108 67 Integrity Restored 517 | . 286 . . . 81 150 Core 455 | . 224 . . . 81 150 Parts 62 | . 62 . . . . . Protomatter Decayed 140 | . 103 . . . 37 . Game ------ Seed ClaymoresEnergyReactor Manual? 0 Play Time 00:45:40 Cumulative 149.0 hours Start 2024.05.07 @ 19:26:42 End 2024.05.07 @ 20:22:17 Sessions 1 Manual Loads 0 Difficulty Adventurer Special Mode Winter2019/RPGLIKE Game No. 38 Rogue 0 Adventurer 38 Explorer 0 Win Type - Total 2 Types 1/0/1/0/0/0/0/0/0 Lore% 40 Gallery% 49 Achievement% 47 Wizard Run 0 Options --------- Layout 0 ASCII 0 Keyboard 0 Movement Mouse Keybinds 0 Fullscreen 1 Font 36/Smallcaps Map View 76x50 Zoom Use 3% Tactical HUD 0 Map Filters NONE Filters NONE Steam 1 RUN: 22b8990f-b5e9-43a3-a72f-141f2d4633b1